[Event "Late-Titled-Tuesday-Blitz-December-26-2023"]
[Site "Chess.com"]
[Date "2023.12.26"]
[Round "1"]
[White "GarayevKanan"]
[Black "semchik73"]
[Result "1-0"]
[WhiteElo "2678"]
[BlackElo "2367"]
[TimeControl "180+1"]
[EndTime "14:07:43 PST"]
[Termination "GarayevKanan won by resignation"]

1. d4 {[%clk 0:03:00.9]} 1... d5 {[%clk 0:02:59.5]} 2. Nf3 {[%clk 0:02:58.7]}
2... Nf6 {[%clk 0:02:59.1]} 3. c3 {[%clk 0:02:59.3]} 3... c5 {[%clk 0:02:59]} 4.
dxc5 {[%clk 0:03:00]} 4... a5 {[%clk 0:02:57.9]} 5. b4 {[%clk 0:02:58.7]} 5...
axb4 {[%clk 0:02:54.5]} 6. cxb4 {[%clk 0:02:59.6]} 6... e6 {[%clk 0:02:54.2]} 7.
e3 {[%clk 0:02:53.2]} 7... b6 {[%clk 0:02:53.2]} 8. Bb5+ {[%clk 0:02:51.1]} 8...
Bd7 {[%clk 0:02:52.9]} 9. Bxd7+ {[%clk 0:02:51.5]} 9... Qxd7 {[%clk 0:02:52.9]}
10. a4 {[%clk 0:02:50.9]} 10... bxc5 {[%clk 0:02:52.1]} 11. b5 {[%clk
0:02:51.5]} 11... Bd6 {[%clk 0:02:49.6]} 12. Bb2 {[%clk 0:02:50.8]} 12... Qe7
{[%clk 0:02:42.6]} 13. Nc3 {[%clk 0:02:40.9]} 13... Nbd7 {[%clk 0:02:41.3]} 14.
a5 {[%clk 0:02:38.9]} 14... O-O {[%clk 0:02:37.8]} 15. O-O {[%clk 0:02:36]}
15... c4 {[%clk 0:02:36.5]} 16. b6 {[%clk 0:02:35]} 16... Rfb8 {[%clk
0:02:33.9]} 17. Nb5 {[%clk 0:02:27.5]} 17... Bb4 {[%clk 0:02:30.5]} 18. Nfd4
{[%clk 0:02:16.5]} 18... Qc5 {[%clk 0:02:22.3]} 19. Nc7 {[%clk 0:02:01.8]} 19...
Rxa5 {[%clk 0:02:19]} 20. Na6 {[%clk 0:02:02.1]} 20... Rxa6 {[%clk 0:02:11.4]}
21. Rxa6 {[%clk 0:02:03]} 21... Nxb6 {[%clk 0:02:08.3]} 22. Qc2 {[%clk 0:01:54]}
22... h6 {[%clk 0:01:37.9]} 23. Nf3 {[%clk 0:01:51.3]} 23... Ne4 {[%clk
0:01:34.4]} 24. Bd4 {[%clk 0:01:41]} 24... Qb5 {[%clk 0:01:33.9]} 25. Rfa1
{[%clk 0:01:41]} 25... Nd7 {[%clk 0:01:31.1]} 26. Ne5 {[%clk 0:01:35.7]} 26...
Nxe5 {[%clk 0:01:24.2]} 27. Bxe5 {[%clk 0:01:36.6]} 27... Rc8 {[%clk 0:01:21.7]}
28. Ra8 {[%clk 0:01:31.7]} 28... Qb7 {[%clk 0:01:15.9]} 29. Rxc8+ {[%clk
0:01:17.4]} 29... Qxc8 {[%clk 0:01:15.4]} 30. f3 {[%clk 0:01:17.7]} 30... Nc5
{[%clk 0:01:10]} 31. Bxg7 {[%clk 0:01:05.1]} 31... Nb3 {[%clk 0:00:50.3]} 32.
Rb1 {[%clk 0:00:41.7]} 32... Qc5 {[%clk 0:00:33.5]} 33. Bxh6 {[%clk 0:00:36.5]}
33... d4 {[%clk 0:00:25.5]} 34. exd4 {[%clk 0:00:33.5]} 34... Qxd4+ {[%clk
0:00:25.1]} 35. Qf2 {[%clk 0:00:23.2]} 35... Qd3 {[%clk 0:00:23.5]} 36. Qg3+
{[%clk 0:00:22.5]} 36... Qg6 {[%clk 0:00:22]} 37. Qxg6+ {[%clk 0:00:20.9]} 37...
fxg6 {[%clk 0:00:22.5]} 38. Kf2 {[%clk 0:00:16.3]} 38... Bc5+ {[%clk 0:00:20.6]}
39. Be3 {[%clk 0:00:16.7]} 39... Bd6 {[%clk 0:00:19.3]} 40. Rb2 {[%clk
0:00:15.8]} 40... Kf7 {[%clk 0:00:18.6]} 41. Rc2 {[%clk 0:00:16.2]} 41... Na5
{[%clk 0:00:17.4]} 42. Bb6 {[%clk 0:00:15.5]} 42... Bb4 {[%clk 0:00:14.7]} 43.
Bxa5 {[%clk 0:00:14.5]} 43... Bxa5 {[%clk 0:00:15.2]} 44. Rxc4 {[%clk
0:00:15.2]} 44... Bb6+ {[%clk 0:00:15.7]} 45. Ke2 {[%clk 0:00:15.7]} 45... Kf6
{[%clk 0:00:16.3]} 46. h3 {[%clk 0:00:16]} 46... Ba5 {[%clk 0:00:15.7]} 47. Rf4+
{[%clk 0:00:15.8]} 47... Ke5 {[%clk 0:00:15.6]} 48. Ra4 {[%clk 0:00:16.7]} 48...
Bc3 {[%clk 0:00:15.3]} 49. Kd3 {[%clk 0:00:17.6]} 49... Be1 {[%clk 0:00:15.1]}
50. Re4+ {[%clk 0:00:18.4]} 50... Kf5 {[%clk 0:00:15.4]} 51. Rxe1 {[%clk
0:00:19.3]} 1-0

[Event "Late-Titled-Tuesday-Blitz-December-26-2023"]
[Site "Chess.com"]
[Date "2023.12.26"]
[Round "1"]
[White "IngOscarArdila"]
[Black "GP9isback23"]
[Result "0-1"]
[WhiteElo "2332"]
[BlackElo "2625"]
[TimeControl "180+1"]
[EndTime "14:07:43 PST"]
[Termination "GP9isback23 won by resignation"]

1. d4 {[%clk 0:02:59.9]} 1... Nf6 {[%clk 0:02:59.6]} 2. c4 {[%clk 0:02:59.7]}
2... e6 {[%clk 0:02:59.7]} 3. Nc3 {[%clk 0:02:59.5]} 3... Bb4 {[%clk 0:02:59.6]}
4. Qc2 {[%clk 0:02:59.2]} 4... d5 {[%clk 0:02:58.9]} 5. cxd5 {[%clk 0:02:58.3]}
5... exd5 {[%clk 0:02:58.6]} 6. Bg5 {[%clk 0:02:58.2]} 6... O-O {[%clk
0:02:54.3]} 7. e3 {[%clk 0:02:58.1]} 7... Be7 {[%clk 0:02:43.7]} 8. Bd3 {[%clk
0:02:57.3]} 8... h6 {[%clk 0:02:41.3]} 9. Bh4 {[%clk 0:02:56.5]} 9... Be6 {[%clk
0:02:40.3]} 10. Nf3 {[%clk 0:02:55.9]} 10... Nbd7 {[%clk 0:02:39.7]} 11. O-O
{[%clk 0:02:55.2]} 11... Rc8 {[%clk 0:02:40.4]} 12. Qa4 {[%clk 0:02:50.1]} 12...
a6 {[%clk 0:02:38.8]} 13. Qb3 {[%clk 0:02:48.7]} 13... b5 {[%clk 0:02:31.8]} 14.
a4 {[%clk 0:02:48]} 14... c5 {[%clk 0:02:26.2]} 15. dxc5 {[%clk 0:02:33.6]}
15... Nxc5 {[%clk 0:02:24.4]} 16. Qd1 {[%clk 0:02:34.3]} 16... b4 {[%clk
0:02:22.2]} 17. Ne2 {[%clk 0:02:30.7]} 17... Qb6 {[%clk 0:02:11.6]} 18. Ned4
{[%clk 0:02:29]} 18... Rfd8 {[%clk 0:02:05.6]} 19. Rc1 {[%clk 0:02:04.2]} 19...
b3 {[%clk 0:01:55.8]} 20. Ra1 {[%clk 0:01:59.1]} 20... Rb8 {[%clk 0:01:45.4]}
21. a5 {[%clk 0:01:58.5]} 21... Qb7 {[%clk 0:01:42.7]} 22. Ne5 {[%clk
0:01:52.7]} 22... Rdc8 {[%clk 0:01:40.9]} 23. Qe2 {[%clk 0:01:48.2]} 23... Ra8
{[%clk 0:01:18.4]} 24. Rfc1 {[%clk 0:01:45.7]} 24... Nfe4 {[%clk 0:01:05]} 25.
Bxe7 {[%clk 0:01:41.1]} 25... Qxe7 {[%clk 0:01:05.9]} 26. Nec6 {[%clk
0:01:32.3]} 26... Qb7 {[%clk 0:01:04.6]} 27. Ne5 {[%clk 0:01:27.4]} 27... Rc7
{[%clk 0:01:04.7]} 28. f3 {[%clk 0:01:22.5]} 28... Nf6 {[%clk 0:00:58.8]} 29.
Rc3 {[%clk 0:01:17.1]} 29... Nxd3 {[%clk 0:00:55.7]} 30. Qxd3 {[%clk 0:01:16]}
30... Rxc3 {[%clk 0:00:55.5]} 31. Qxc3 {[%clk 0:01:15]} 31... Rc8 {[%clk
0:00:46.1]} 32. Qd3 {[%clk 0:01:07.7]} 32... Nd7 {[%clk 0:00:31.6]} 33. Nxd7
{[%clk 0:01:04]} 33... Bxd7 {[%clk 0:00:32.5]} 34. Rd1 {[%clk 0:00:59.5]} 34...
Rb8 {[%clk 0:00:26.8]} 35. Rc1 {[%clk 0:00:55.6]} 35... Ba4 {[%clk 0:00:24.4]}
36. Rc5 {[%clk 0:00:52.7]} 36... Bd7 {[%clk 0:00:22.9]} 37. Qc3 {[%clk
0:00:51.6]} 37... Be8 {[%clk 0:00:15.9]} 38. Rc7 {[%clk 0:00:48.8]} 38... Qb4
{[%clk 0:00:15.9]} 39. Qxb4 {[%clk 0:00:42.8]} 39... Rxb4 {[%clk 0:00:16.8]} 40.
Rc8 {[%clk 0:00:43.1]} 40... Kf8 {[%clk 0:00:16.8]} 41. Nc6 {[%clk 0:00:43.4]}
41... Rc4 {[%clk 0:00:15.9]} 42. Na7 {[%clk 0:00:40.7]} 42... Ra4 {[%clk
0:00:15.4]} 43. Rc5 {[%clk 0:00:38.7]} 43... Ra2 {[%clk 0:00:14]} 44. Rxd5
{[%clk 0:00:24.8]} 44... Rxb2 {[%clk 0:00:14.4]} 45. Rd8 {[%clk 0:00:19.8]}
45... Rc2 {[%clk 0:00:12.9]} 46. h4 {[%clk 0:00:15.7]} 46... b2 {[%clk
0:00:13.4]} 47. Rb8 {[%clk 0:00:16]} 47... Rc1+ {[%clk 0:00:13.9]} 48. Kh2
{[%clk 0:00:16.4]} 48... b1=Q {[%clk 0:00:14.8]} 49. Rxb1 {[%clk 0:00:16.5]}
49... Rxb1 {[%clk 0:00:15.7]} 50. Nc8 {[%clk 0:00:17]} 50... Rb5 {[%clk
0:00:14.3]} 51. Nd6 {[%clk 0:00:16.8]} 51... Rxa5 {[%clk 0:00:15]} 52. Kg3
{[%clk 0:00:16.9]} 52... Ra2 {[%clk 0:00:15.2]} 53. e4 {[%clk 0:00:17.3]} 53...
a5 {[%clk 0:00:15.4]} 54. Kf4 {[%clk 0:00:18]} 54... a4 {[%clk 0:00:16.1]} 55.
Nc4 {[%clk 0:00:18.2]} 55... Bd7 {[%clk 0:00:16]} 56. Ke5 {[%clk 0:00:18.9]}
56... Be6 {[%clk 0:00:16.4]} 57. Ne3 {[%clk 0:00:18.5]} 57... Re2 {[%clk
0:00:16.7]} 58. f4 {[%clk 0:00:19.3]} 58... Rxe3 {[%clk 0:00:16.7]} 59. f5
{[%clk 0:00:20]} 59... Bxf5 {[%clk 0:00:17]} 0-1

[Event "Late-Titled-Tuesday-Blitz-December-26-2023"]
[Site "Chess.com"]
[Date "2023.12.26"]
[Round "1"]
[White "YurasovMat-2012"]
[Black "TheMagician"]
[Result "1-0"]
[WhiteElo "2544"]
[BlackElo "2169"]
[TimeControl "180+1"]
[EndTime "14:07:46 PST"]
[Termination "YurasovMat-2012 won by checkmate"]

1. e4 {[%clk 0:02:59.7]} 1... d5 {[%clk 0:02:58.1]} 2. exd5 {[%clk 0:02:59.2]}
2... Qxd5 {[%clk 0:02:57.3]} 3. Nc3 {[%clk 0:02:59.1]} 3... Qd8 {[%clk
0:02:56.9]} 4. Nf3 {[%clk 0:02:58.9]} 4... Nf6 {[%clk 0:02:56]} 5. d4 {[%clk
0:02:58.4]} 5... c6 {[%clk 0:02:56.2]} 6. g3 {[%clk 0:02:58.2]} 6... Bf5 {[%clk
0:02:54.6]} 7. Bg2 {[%clk 0:02:58.1]} 7... e6 {[%clk 0:02:54.9]} 8. O-O {[%clk
0:02:55.2]} 8... Be7 {[%clk 0:02:55]} 9. Re1 {[%clk 0:02:53]} 9... O-O {[%clk
0:02:51]} 10. h3 {[%clk 0:02:53.3]} 10... Nd5 {[%clk 0:02:48.9]} 11. Ne4 {[%clk
0:02:50.1]} 11... Bxe4 {[%clk 0:02:44.7]} 12. Rxe4 {[%clk 0:02:49.5]} 12... Nd7
{[%clk 0:02:44.7]} 13. c4 {[%clk 0:02:49]} 13... N5f6 {[%clk 0:02:44.8]} 14. Re1
{[%clk 0:02:48.8]} 14... c5 {[%clk 0:02:40.7]} 15. b3 {[%clk 0:02:44.6]} 15...
cxd4 {[%clk 0:02:33.5]} 16. Nxd4 {[%clk 0:02:44.4]} 16... Bc5 {[%clk 0:02:22.4]}
17. Bb2 {[%clk 0:02:43.3]} 17... Rb8 {[%clk 0:02:17.2]} 18. Qe2 {[%clk
0:02:42.7]} 18... Qc7 {[%clk 0:02:04.2]} 19. Rad1 {[%clk 0:02:42.5]} 19... Rfd8
{[%clk 0:02:02.4]} 20. Kh2 {[%clk 0:02:41.6]} 20... a6 {[%clk 0:02:02.3]} 21. a3
{[%clk 0:02:31.7]} 21... Bf8 {[%clk 0:01:51.7]} 22. f4 {[%clk 0:02:27.7]} 22...
h5 {[%clk 0:01:49.7]} 23. Nf3 {[%clk 0:02:24.6]} 23... g6 {[%clk 0:01:43.6]} 24.
Ng5 {[%clk 0:02:24]} 24... Re8 {[%clk 0:01:43.5]} 25. b4 {[%clk 0:02:07.2]}
25... h4 {[%clk 0:01:41.3]} 26. Be5 {[%clk 0:01:25.5]} 26... hxg3+ {[%clk
0:01:41.2]} 27. Kh1 {[%clk 0:01:22.3]} 27... Nxe5 {[%clk 0:01:40.2]} 28. fxe5
{[%clk 0:01:23.2]} 28... Nh7 {[%clk 0:01:24]} 29. Nf3 {[%clk 0:01:17.2]} 29...
Bh6 {[%clk 0:01:15.9]} 30. h4 {[%clk 0:01:12.3]} 30... Red8 {[%clk 0:01:14.8]}
31. Qe4 {[%clk 0:01:11.1]} 31... Rbc8 {[%clk 0:01:12.8]} 32. c5 {[%clk
0:01:10.3]} 32... Rxd1 {[%clk 0:01:10.9]} 33. Rxd1 {[%clk 0:01:10.3]} 33... Rd8
{[%clk 0:01:07.5]} 34. Rd6 {[%clk 0:01:09.2]} 34... Bf8 {[%clk 0:01:06.5]} 35.
Rd4 {[%clk 0:01:05.3]} 35... Rxd4 {[%clk 0:01:05.9]} 36. Nxd4 {[%clk 0:01:03.5]}
36... Qd8 {[%clk 0:01:05.1]} 37. Qf4 {[%clk 0:00:56.9]} 37... Be7 {[%clk
0:00:57]} 38. Bxb7 {[%clk 0:00:53.8]} 38... Bxh4 {[%clk 0:00:56.8]} 39. Kg2
{[%clk 0:00:51.5]} 39... g5 {[%clk 0:00:56.8]} 40. Qe4 {[%clk 0:00:50]} 40...
Kh8 {[%clk 0:00:40.7]} 41. Bxa6 {[%clk 0:00:47.6]} 41... f5 {[%clk 0:00:40.8]}
42. exf6 {[%clk 0:00:36.6]} 42... Nxf6 {[%clk 0:00:40.2]} 43. Qe5 {[%clk
0:00:29.1]} 43... Qa8+ {[%clk 0:00:36.9]} 44. c6 {[%clk 0:00:29.3]} 44... Qxa6
{[%clk 0:00:36.5]} 45. Qxf6+ {[%clk 0:00:29.3]} 45... Kh7 {[%clk 0:00:35.9]} 46.
Qe7+ {[%clk 0:00:25.9]} 46... Kh8 {[%clk 0:00:35]} 47. c7 {[%clk 0:00:24]} 47...
Qb7+ {[%clk 0:00:29.8]} 48. Kg1 {[%clk 0:00:23.9]} 48... g4 {[%clk 0:00:20.2]}
49. Qxh4+ {[%clk 0:00:23.7]} 49... Kg7 {[%clk 0:00:20.9]} 50. Qd8 {[%clk
0:00:23.6]} 50... Kg6 {[%clk 0:00:21.4]} 51. c8=Q {[%clk 0:00:23.6]} 51... Qe4
{[%clk 0:00:20.5]} 52. Qxe6+ {[%clk 0:00:23.3]} 52... Qxe6 {[%clk 0:00:19.9]}
53. Nxe6 {[%clk 0:00:24.2]} 53... Kf5 {[%clk 0:00:20.2]} 54. Qd5+ {[%clk
0:00:23.8]} 54... Kf6 {[%clk 0:00:19.2]} 55. b5 {[%clk 0:00:24.4]} 55... g2
{[%clk 0:00:19]} 56. b6 {[%clk 0:00:24.1]} 56... g3 {[%clk 0:00:19.9]} 57. b7
{[%clk 0:00:24.5]} 57... Ke7 {[%clk 0:00:20]} 58. b8=Q {[%clk 0:00:24.5]} 58...
Kf6 {[%clk 0:00:20.8]} 59. Qf8+ {[%clk 0:00:24.6]} 59... Kg6 {[%clk 0:00:21.7]}
60. Qdf5# {[%clk 0:00:24.8]} 1-0

[Event "Late-Titled-Tuesday-Blitz-December-26-2023"]
[Site "Chess.com"]
[Date "2023.12.26"]
[Round "1"]
[White "Andrej2004"]
[Black "AlexNovitz"]
[Result "1-0"]
[WhiteElo "2565"]
[BlackElo "2215"]
[TimeControl "180+1"]
[EndTime "14:07:50 PST"]
[Termination "Andrej2004 won on time"]

1. Nf3 {[%clk 0:03:00.9]} 1... c5 {[%clk 0:02:59.1]} 2. c4 {[%clk 0:03:01.2]}
2... Nc6 {[%clk 0:02:58.6]} 3. b3 {[%clk 0:03:01.7]} 3... e5 {[%clk 0:02:58.1]}
4. d3 {[%clk 0:03:01.6]} 4... g6 {[%clk 0:02:57.8]} 5. Nc3 {[%clk 0:03:02.3]}
5... Bg7 {[%clk 0:02:57.3]} 6. Bb2 {[%clk 0:03:02.8]} 6... Nge7 {[%clk
0:02:56.7]} 7. g3 {[%clk 0:03:03.4]} 7... d6 {[%clk 0:02:56.1]} 8. Bg2 {[%clk
0:03:03.8]} 8... O-O {[%clk 0:02:55.7]} 9. O-O {[%clk 0:03:04.5]} 9... h6 {[%clk
0:02:51.1]} 10. Nd5 {[%clk 0:03:04.8]} 10... Be6 {[%clk 0:02:50.7]} 11. Nd2
{[%clk 0:03:04.8]} 11... Rb8 {[%clk 0:02:47.1]} 12. a3 {[%clk 0:03:04.3]} 12...
a6 {[%clk 0:02:43.8]} 13. b4 {[%clk 0:03:01.6]} 13... cxb4 {[%clk 0:02:38]} 14.
Nxb4 {[%clk 0:03:01.7]} 14... Nxb4 {[%clk 0:02:28.9]} 15. axb4 {[%clk
0:03:02.6]} 15... d5 {[%clk 0:02:28.7]} 16. Qb3 {[%clk 0:02:52.2]} 16... dxc4
{[%clk 0:02:21.6]} 17. Qc3 {[%clk 0:02:40.9]} 17... cxd3 {[%clk 0:02:16.5]} 18.
exd3 {[%clk 0:02:41.8]} 18... Nd5 {[%clk 0:02:13.5]} 19. Qa3 {[%clk 0:02:41]}
19... Qb6 {[%clk 0:02:07.1]} 20. Nc4 {[%clk 0:02:08.5]} 20... Qxb4 {[%clk
0:02:05.5]} 21. Qa2 {[%clk 0:02:08.1]} 21... Nc3 {[%clk 0:01:56.6]} 22. Qa5
{[%clk 0:01:47.7]} 22... Qxa5 {[%clk 0:01:33.1]} 23. Rxa5 {[%clk 0:01:48.6]}
23... Ne2+ {[%clk 0:01:31.7]} 24. Kh1 {[%clk 0:01:49.2]} 24... Bxc4 {[%clk
0:01:18.4]} 25. dxc4 {[%clk 0:01:50.1]} 25... Rfc8 {[%clk 0:01:14.8]} 26. Bxe5
{[%clk 0:01:48.1]} 26... Bxe5 {[%clk 0:01:12.4]} 27. Rxe5 {[%clk 0:01:49]} 27...
Nc3 {[%clk 0:01:01.6]} 28. Rc1 {[%clk 0:01:47.8]} 28... Rxc4 {[%clk 0:01:00.3]}
29. Re3 {[%clk 0:01:47.7]} 29... Rbc8 {[%clk 0:00:51.1]} 30. Bxb7 {[%clk
0:01:46.5]} 30... R8c7 {[%clk 0:00:46.8]} 31. Bxa6 {[%clk 0:01:46.5]} 31... R4c5
{[%clk 0:00:47.2]} 32. Bf1 {[%clk 0:01:43.3]} 32... Nd5 {[%clk 0:00:42.3]} 33.
Rxc5 {[%clk 0:01:39.1]} 33... Rxc5 {[%clk 0:00:43.2]} 34. Re5 {[%clk 0:01:39.1]}
34... Rc1 {[%clk 0:00:34.3]} 35. Kg2 {[%clk 0:01:31.7]} 35... Nf6 {[%clk
0:00:32.3]} 36. h3 {[%clk 0:01:30.4]} 36... Kg7 {[%clk 0:00:31.9]} 37. Ra5
{[%clk 0:01:29.8]} 37... Rc7 {[%clk 0:00:30.8]} 38. Be2 {[%clk 0:01:30]} 38...
Re7 {[%clk 0:00:30.5]} 39. Bf3 {[%clk 0:01:30.3]} 39... h5 {[%clk 0:00:26.6]}
40. Rg5 {[%clk 0:01:26.3]} 40... Nh7 {[%clk 0:00:25.3]} 41. Ra5 {[%clk
0:01:26.1]} 41... Nf6 {[%clk 0:00:25.6]} 42. Rb5 {[%clk 0:01:26.7]} 42... Nh7
{[%clk 0:00:25.6]} 43. Kh2 {[%clk 0:01:24.3]} 43... Nf6 {[%clk 0:00:25.4]} 44.
Ra5 {[%clk 0:01:23.5]} 44... Nh7 {[%clk 0:00:25.6]} 45. Ra6 {[%clk 0:01:23.5]}
45... Nf6 {[%clk 0:00:25.7]} 46. Kg2 {[%clk 0:01:23.9]} 46... Nh7 {[%clk
0:00:26]} 47. g4 {[%clk 0:01:24]} 47... hxg4 {[%clk 0:00:25.9]} 48. hxg4 {[%clk
0:01:24.9]} 48... Nf6 {[%clk 0:00:25.8]} 49. Kg3 {[%clk 0:01:23.7]} 49... g5
{[%clk 0:00:22]} 50. Bd1 {[%clk 0:01:18.4]} 50... Ne4+ {[%clk 0:00:20.6]} 51.
Kg2 {[%clk 0:01:18]} 51... f6 {[%clk 0:00:18.7]} 52. Bc2 {[%clk 0:01:17.8]}
52... Nc5 {[%clk 0:00:14]} 53. Ra8 {[%clk 0:01:11.8]} 53... Nd7 {[%clk 0:00:13]}
54. Bf5 {[%clk 0:01:11.3]} 54... Ne5 {[%clk 0:00:12.8]} 55. Ra1 {[%clk
0:01:08.7]} 55... Rc7 {[%clk 0:00:12.7]} 56. Rh1 {[%clk 0:01:08.5]} 56... Kg8
{[%clk 0:00:10.1]} 57. Rh6 {[%clk 0:01:07.5]} 57... Rc6 {[%clk 0:00:08.1]} 58.
Be4 {[%clk 0:01:05.5]} 58... Rd6 {[%clk 0:00:08]} 59. Bf5 {[%clk 0:01:05.7]}
59... Rb6 {[%clk 0:00:08.1]} 60. Kg3 {[%clk 0:01:04]} 60... Kg7 {[%clk
0:00:07.5]} 61. Rh7+ {[%clk 0:01:03.5]} 61... Kg8 {[%clk 0:00:07.9]} 62. Ra7
{[%clk 0:01:02.9]} 62... Rb3+ {[%clk 0:00:07.7]} 63. Kg2 {[%clk 0:01:03.1]}
63... Rb6 {[%clk 0:00:07.7]} 64. Kf1 {[%clk 0:01:02.3]} 64... Rd6 {[%clk
0:00:05.1]} 65. Ke2 {[%clk 0:01:01.6]} 65... Rb6 {[%clk 0:00:05.2]} 66. f3
{[%clk 0:01:00.6]} 66... Rd6 {[%clk 0:00:05.4]} 67. Be4 {[%clk 0:01:01]} 67...
Rb6 {[%clk 0:00:05.5]} 68. Ke3 {[%clk 0:01:01.6]} 68... Rb3+ {[%clk 0:00:04.8]}
69. Kf2 {[%clk 0:01:01.1]} 69... Rb6 {[%clk 0:00:04.8]} 70. Kg3 {[%clk
0:01:00.9]} 70... Rb3 {[%clk 0:00:04.4]} 71. Bd5+ {[%clk 0:01:00.8]} 1-0

[Event "Late-Titled-Tuesday-Blitz-December-26-2023"]
[Site "Chess.com"]
[Date "2023.12.26"]
[Round "1"]
[White "zverr1"]
[Black "lukazz029"]
[Result "0-1"]
[WhiteElo "2499"]
[BlackElo "1987"]
[TimeControl "180+1"]
[EndTime "14:07:56 PST"]
[Termination "lukazz029 won by checkmate"]

1. e4 {[%clk 0:03:00.9]} 1... c5 {[%clk 0:02:58.7]} 2. Nf3 {[%clk 0:03:00.1]}
2... d6 {[%clk 0:02:56.1]} 3. Nc3 {[%clk 0:03:00]} 3... g6 {[%clk 0:02:53.5]} 4.
d4 {[%clk 0:02:59.6]} 4... cxd4 {[%clk 0:02:51.9]} 5. Nxd4 {[%clk 0:03:00.5]}
5... Bg7 {[%clk 0:02:51.6]} 6. Be3 {[%clk 0:03:00.7]} 6... Nc6 {[%clk
0:02:49.9]} 7. Qd2 {[%clk 0:02:59.2]} 7... Nf6 {[%clk 0:02:43.8]} 8. f3 {[%clk
0:02:59.3]} 8... Bd7 {[%clk 0:02:25.4]} 9. O-O-O {[%clk 0:02:58.5]} 9... Rc8
{[%clk 0:02:18.4]} 10. Kb1 {[%clk 0:02:58.6]} 10... Ne5 {[%clk 0:02:07.6]} 11.
g4 {[%clk 0:02:57.7]} 11... a6 {[%clk 0:02:02.7]} 12. h4 {[%clk 0:02:56.1]}
12... h5 {[%clk 0:02:02.7]} 13. g5 {[%clk 0:02:56.3]} 13... Nh7 {[%clk
0:01:53.6]} 14. Nd5 {[%clk 0:02:54.4]} 14... b5 {[%clk 0:01:48]} 15. Be2 {[%clk
0:02:54.3]} 15... Nc4 {[%clk 0:01:45]} 16. Bxc4 {[%clk 0:02:52]} 16... Rxc4
{[%clk 0:01:45.9]} 17. Nb3 {[%clk 0:02:44.8]} 17... Be6 {[%clk 0:01:33]} 18. Na5
{[%clk 0:02:38.5]} 18... Rc8 {[%clk 0:01:29.3]} 19. Bd4 {[%clk 0:02:15.1]} 19...
Bxd4 {[%clk 0:01:23.4]} 20. Qxd4 {[%clk 0:02:16]} 20... O-O {[%clk 0:01:22.5]}
21. Nb3 {[%clk 0:01:50]} 21... Rc4 {[%clk 0:01:20.2]} 22. Qd2 {[%clk 0:01:50.2]}
22... Bxd5 {[%clk 0:01:18.1]} 23. Qxd5 {[%clk 0:01:48.6]} 23... Qc7 {[%clk
0:01:17.6]} 24. Rd2 {[%clk 0:01:45]} 24... Rc8 {[%clk 0:01:16.4]} 25. c3 {[%clk
0:01:31.7]} 25... Nf8 {[%clk 0:01:09.9]} 26. f4 {[%clk 0:01:28.6]} 26... Ne6
{[%clk 0:01:04.3]} 27. f5 {[%clk 0:01:25.8]} 27... Nf4 {[%clk 0:01:04.2]} 28.
fxg6 {[%clk 0:01:08.6]} 28... Nxd5 {[%clk 0:01:03.9]} 29. gxf7+ {[%clk
0:01:08.6]} 29... Kxf7 {[%clk 0:01:03.8]} 30. Rxd5 {[%clk 0:01:06.4]} 30... Kg7
{[%clk 0:01:02.7]} 31. g6 {[%clk 0:00:57]} 31... Rxe4 {[%clk 0:00:57.5]} 32.
Rxh5 {[%clk 0:00:54.2]} 32... Rh8 {[%clk 0:00:57.8]} 33. Rf5 {[%clk 0:00:52.4]}
33... Re5 {[%clk 0:00:56.5]} 34. Rf7+ {[%clk 0:00:49.1]} 34... Kxg6 {[%clk
0:00:56.5]} 35. Rf4 {[%clk 0:00:47.2]} 35... Rf5 {[%clk 0:00:54.3]} 36. Rg1+
{[%clk 0:00:44.1]} 36... Kf6 {[%clk 0:00:54.6]} 37. Rfg4 {[%clk 0:00:43]} 37...
Qc6 {[%clk 0:00:50.4]} 38. Nd4 {[%clk 0:00:41]} 38... Qd5 {[%clk 0:00:48.5]} 39.
Rg6+ {[%clk 0:00:27.1]} 39... Kf7 {[%clk 0:00:48.5]} 40. Rg7+ {[%clk 0:00:26.1]}
40... Ke8 {[%clk 0:00:47.5]} 41. Nxf5 {[%clk 0:00:18.4]} 41... Qxf5+ {[%clk
0:00:48.4]} 42. Ka1 {[%clk 0:00:18.2]} 42... Rxh4 {[%clk 0:00:48.8]} 43. a3
{[%clk 0:00:15.1]} 43... Rh2 {[%clk 0:00:48]} 44. Re1 {[%clk 0:00:12]} 44... Qf6
{[%clk 0:00:46.4]} 45. Rg8+ {[%clk 0:00:09.3]} 45... Kd7 {[%clk 0:00:45.8]} 46.
Ra8 {[%clk 0:00:10]} 46... Qf2 {[%clk 0:00:45]} 47. Rb1 {[%clk 0:00:09.4]} 47...
e5 {[%clk 0:00:43.1]} 48. Rg8 {[%clk 0:00:03.2]} 48... e4 {[%clk 0:00:42.7]} 49.
Rg7+ {[%clk 0:00:03.9]} 49... Kc6 {[%clk 0:00:42.5]} 50. Rg8 {[%clk 0:00:03.4]}
50... e3 {[%clk 0:00:42.5]} 51. Re8 {[%clk 0:00:04.2]} 51... Kd7 {[%clk
0:00:40]} 52. Re4 {[%clk 0:00:03.6]} 52... Qf3 {[%clk 0:00:39.2]} 53. Rd4 {[%clk
0:00:02.1]} 53... e2 {[%clk 0:00:39.3]} 54. a4 {[%clk 0:00:01.5]} 54... Rh1
{[%clk 0:00:39.3]} 55. axb5 {[%clk 0:00:01.4]} 55... Rxb1+ {[%clk 0:00:38.9]}
56. Kxb1 {[%clk 0:00:02.3]} 56... e1=Q+ {[%clk 0:00:38.8]} 57. Ka2 {[%clk
0:00:03]} 57... axb5 {[%clk 0:00:38.6]} 58. Rb4 {[%clk 0:00:02.9]} 58... Qf7+
{[%clk 0:00:38.1]} 59. b3 {[%clk 0:00:01.6]} 59... Qd2+ {[%clk 0:00:38.1]} 60.
Ka3 {[%clk 0:00:01.7]} 60... Qc1+ {[%clk 0:00:38.4]} 61. Ka2 {[%clk 0:00:02.4]}
61... Qf2# {[%clk 0:00:38.1]} 0-1